bitfinex/quotes_BTCUSD_20240908
["timestamp","ask_amount","ask_price","bid_price","bid_amount"]
[1725803885769,0.183389,54529.0,54526.0,0.17183]
[1725803885997,0.183392,54528.0,54526.0,0.17183]
[1725803886454,0.183392,54528.0,54526.0,0.15783]
[1725803886931,0.550973,54530.0,54526.0,0.199028]
[1725803887179,0.183391,54529.0,54527.0,0.1422]
[1725803887590,0.183392,54528.0,54527.0,0.1422]
[1725803888969,0.183392,54528.0,54527.0,0.1562]
[1725803889692,0.183392,54528.0,54527.0,0.1422]
[1725803889920,0.183392,54528.0,54527.0,0.1562]
[1725803890142,0.367586,54530.0,54527.0,0.1702]
[1725803890367,0.367586,54530.0,54527.0,0.1562]
[1725803890888,0.367586,54530.0,54527.0,0.1702]
[1725803891500,0.367586,54530.0,54527.0,0.1562]
[1725803891501,0.183388,54529.0,54527.0,0.1562]
[1725803891685,0.183388,54529.0,54527.0,0.1702]
[1725803892217,0.183388,54529.0,54527.0,0.1562]
[1725803892441,0.1842,54530.0,54527.0,0.1702]
[1725803892670,0.1842,54530.0,54527.0,0.1562]
[1725803892865,0.183388,54529.0,54527.0,0.1562]
[1725803893128,0.000815,54530.0,54528.0,0.1442]
[1725803893358,0.000815,54530.0,54529.0,0.3312554]
[1725803894706,0.000815,54530.0,54529.0,0.1442]
[1725803894981,0.000815,54530.0,54529.0,0.71203229]
[1725803895212,0.000815,54530.0,54529.0,0.708365]
[1725803895674,0.000815,54530.0,54529.0,0.82626306]
[1725803896321,0.000815,54530.0,54529.0,1.19304006]
[1725803896735,0.000815,54530.0,54529.0,1.20704006]
[1725803898355,0.000815,54530.0,54529.0,1.20904006]
[1725803899295,0.000815,54530.0,54529.0,1.20704006]
[1725803899755,0.000815,54530.0,54529.0,1.59681706]
[1725803902533,0.000815,54530.0,54529.0,1.23004006]
[1725803909921,0.000815,54530.0,54529.0,1.23167006]
[1725803911250,0.000815,54530.0,54529.0,1.16647006]
[1725803911476,0.000815,54530.0,54529.0,0.44542656]
[1725803911694,0.000815,54530.0,54529.0,0.81220356]
[1725803916338,0.000815,54530.0,54529.0,1.17898056]
[1725803918172,0.000815,54530.0,54529.0,0.81220356]
[1725803918417,0.000815,54530.0,54529.0,1.17898056]
[1725803918850,0.000815,54530.0,54529.0,1.33492102]
[1725803928521,0.000815,54530.0,54529.0,1.24671246]
[1725803928738,0.000815,54530.0,54529.0,1.17898056]
[1725803930110,0.000815,54530.0,54529.0,1.17908056]
[1725803931564,0.000815,54530.0,54529.0,0.292118]
[1725803931839,0.000815,54530.0,54529.0,0.02973]
[1725803932084,0.000815,54530.0,54529.0,0.213118]
[1725803935645,0.000815,54530.0,54529.0,0.69776986]
[1725803935944,0.000815,54530.0,54529.0,0.83996986]
[1725803940379,0.000815,54530.0,54529.0,1.20674686]
[1725803948523,0.000815,54530.0,54529.0,0.722095]
[1725803948762,0.000815,54530.0,54529.0,0.81030356]
[1725803951734,0.000815,54530.0,54529.0,0.38152656]
[1725803951944,0.000815,54530.0,54529.0,0.19813856]
[1725803952157,0.000815,54530.0,54529.0,0.11793856]
[1725803952358,0.000815,54530.0,54529.0,0.23610392]
[1725803952859,0.48256847,54533.0,54529.0,0.23610392]
[1725803953078,0.29919247,54533.0,54529.0,0.23610392]
[1725803953302,0.183379,54532.0,54529.0,0.23610392]
[1725803953522,0.183379,54532.0,54530.0,0.07007357]
[1725803955990,0.183379,54532.0,54530.0,0.08307357]
[1725803956438,0.183379,54532.0,54530.0,0.09607357]
[1725803956876,0.183381,54531.0,54530.0,0.026]
[1725803958155,0.183381,54531.0,54530.0,0.013]
[1725803958404,0.183381,54531.0,54529.0,0.08993856]
[1725803958615,0.183381,54531.0,54530.0,0.014]
[1725803958899,0.183381,54531.0,54530.0,0.05740616]
[1725803959139,0.550144,54531.0,54530.0,0.05740616]
[1725803959357,0.183381,54531.0,54530.0,0.05740616]
[1725803960261,0.183381,54531.0,54530.0,0.07140616]
[1725803962830,0.550144,54531.0,54530.0,0.028]
[1725803963066,1.18811231,54531.0,54530.0,0.028]
[1725803963308,0.38598631,54531.0,54530.0,0.028]
[1725803963533,0.86298028,54531.0,54530.0,0.028]
[1725803963762,0.710844,54531.0,54530.0,0.028]
[1725803963992,0.79350612,54531.0,54530.0,0.028]
[1725803964231,0.710844,54531.0,54530.0,0.028]
[1725803964475,0.79350148,54531.0,54530.0,0.028]
[1725803964709,0.183385,54530.0,54529.0,0.00173]
[1725803964947,0.63281313,54530.0,54529.0,0.00173]
[1725803965461,0.550155,54530.0,54529.0,0.00173]
[1725803965692,0.60525774,54530.0,54529.0,0.00173]
[1725803965947,0.550155,54530.0,54529.0,0.00173]
[1725803966165,0.183385,54530.0,54529.0,0.01573]
[1725803966400,0.550155,54530.0,54529.0,0.01573]
[1725803966680,0.550155,54530.0,54529.0,0.02973]
[1725803968585,0.6052536,54530.0,54529.0,0.02973]
[1725803971960,1.0361211,54530.0,54529.0,0.02973]
[1725803972190,1.06366915,54530.0,54529.0,0.02973]
[1725803972421,1.00187968,54530.0,54529.0,0.02973]
[1725803972653,1.06366722,54530.0,54529.0,0.02973]
[1725803978909,1.01916711,54530.0,54529.0,0.02973]
[1725803979349,1.12934582,54530.0,54529.0,0.02973]
[1725803983731,1.49611582,54530.0,54529.0,0.02973]
[1725803983942,1.12934582,54530.0,54529.0,0.02973]
[1725803985081,1.06524582,54530.0,54529.0,0.02973]
[1725803986593,0.95506711,54530.0,54529.0,0.02973]
[1725803986814,0.916925,54530.0,54529.0,0.02973]
[1725803987329,0.97199317,54530.0,54529.0,0.02973]
[1725803988471,0.916925,54530.0,54529.0,0.02973]
[1725803988938,0.183385,54530.0,54529.0,0.02973]
[1725803989415,0.550155,54530.0,54529.0,0.02973]
[1725803990404,0.05506817,54532.0,54530.0,0.183382]
[1725803990616,0.05506817,54532.0,54529.0,0.278218]
[1725803991531,0.05507201,54532.0,54529.0,0.250218]
[1725803991777,0.05507201,54532.0,54530.0,0.012]
[1725803992015,0.23926301,54533.0,54530.0,0.024]
[1725803992278,0.05507201,54532.0,54529.0,0.250218]
[1725803992506,0.05507201,54532.0,54529.0,0.262218]
[1725803992738,0.05507201,54532.0,54529.0,0.274218]
[1725803992959,0.05507201,54532.0,54529.0,0.262218]
[1725803993171,0.05507201,54532.0,54530.0,0.012]
[1725803994044,0.05507201,54532.0,54529.0,0.250218]
[1725803994273,0.05507201,54532.0,54530.0,0.011]
[1725803994498,0.05507201,54531.0,54530.0,0.011]
[1725803994727,0.05507201,54531.0,54529.0,0.250218]
[1725803995210,0.05507201,54531.0,54530.0,0.014]
[1725803995645,0.05507201,54531.0,54529.0,0.250218]
[1725803995852,0.05507201,54531.0,54529.0,0.264218]
[1725803996065,0.05507201,54531.0,54529.0,0.278218]
[1725803996285,0.05507201,54531.0,54529.0,0.264218]
[1725803996510,0.0550809,54531.0,54530.0,0.014]
[1725803996734,0.2384619,54531.0,54530.0,0.014]
[1725803996965,0.2384619,54531.0,54529.0,0.08083]
[1725803996966,0.0550809,54531.0,54529.0,0.264218]
[1725803997190,0.05508313,54531.0,54529.0,0.278218]
[1725803997431,0.05508313,54531.0,54529.0,0.08083]
[1725803997703,0.05508313,54531.0,54530.0,0.014]
[1725803998347,0.05508313,54531.0,54529.0,0.01573]
[1725803998770,0.05508313,54530.0,54529.0,0.01573]
[1725803998985,0.05508313,54530.0,54529.0,0.00173]
[1725803999223,0.97200813,54530.0,54529.0,0.00173]
[1725803999450,1.19142604,54530.0,54529.0,0.00173]
[1725803999690,1.19142604,54530.0,54529.0,0.01573]
[1725803999903,1.19142604,54530.0,54529.0,0.00173]
[1725804000362,1.65225314,54530.0,54529.0,0.01573]
[1725804000829,1.67936587,54530.0,54529.0,0.01573]
[1725804001065,1.52604796,54530.0,54529.0,0.02973]
[1725804001309,1.4984995,54530.0,54529.0,0.02973]
[1725804001555,1.4984995,54530.0,54529.0,0.01573]
[1725804001803,1.4984995,54530.0,54529.0,0.00773]
[1725804002046,1.4984995,54530.0,54529.0,0.01373]
[1725804002254,1.6720209,54530.0,54529.0,0.01373]
[1725804002965,1.4984995,54530.0,54529.0,0.01373]
[1725804003630,1.38830857,54530.0,54529.0,0.01373]
[1725804004546,1.55349683,54530.0,54529.0,0.01373]
[1725804011027,1.12062683,54530.0,54529.0,0.09163]
[1725804011250,1.09307793,54530.0,54529.0,0.09163]
[1725804011700,0.98288744,54530.0,54529.0,0.09163]
[1725804012142,0.61611744,54530.0,54529.0,0.09163]
[1725804012366,0.61611744,54530.0,54529.0,0.15303]
[1725804013084,0.66024515,54530.0,54529.0,0.15303]
[1725804014229,0.26602628,54530.0,54529.0,0.15303]
[1725804014891,0.26602628,54530.0,54529.0,0.09163]
[1725804016920,0.05509403,54530.0,54529.0,0.09163]
[1725804017283,0.23847903,54530.0,54529.0,0.09163]
[1725804018234,0.0274708,54531.0,54529.0,0.09163]
[1725804018235,0.26594783,54531.0,54529.0,0.09163]
[1725804018447,0.183385,54530.0,54529.0,0.09163]
[1725804019323,0.183385,54530.0,54529.0,0.08563]
[1725804019442,0.183385,54530.0,54529.0,0.09063]
[1725804020750,0.183385,54530.0,54529.0,0.08563]
[1725804020959,0.25692537,54530.0,54529.0,0.08563]
[1725804021161,0.183385,54530.0,54529.0,0.09163]
[1725804024126,0.367565,54533.0,54529.0,0.09163]
[1725804024127,0.000815,54533.0,54532.0,0.0784]
[1725804024363,0.000815,54533.0,54532.0,0.77814356]
[1725804025482,0.000815,54533.0,54532.0,1.14790056]
[1725804025706,0.000815,54533.0,54532.0,1.30014132]
[1725804025944,0.000815,54533.0,54532.0,1.29714132]
[1725804026583,0.000815,54533.0,54532.0,1.29914132]
[1725804026812,0.000815,54533.0,54532.0,0.93238432]
[1725804027019,0.000815,54533.0,54532.0,0.93038432]
[1725804027223,0.000815,54533.0,54532.0,0.95838432]
[1725804027448,0.000815,54533.0,54532.0,1.32514132]
[1725804028400,0.000815,54533.0,54532.0,0.94438432]
[1725804028623,0.000815,54533.0,54532.0,0.95838432]
[1725804028822,0.000815,54533.0,54532.0,0.94438432]
[1725804029538,0.000815,54533.0,54532.0,1.31114132]
[1725804030003,0.000815,54533.0,54532.0,1.22293276]
[1725804030221,0.000815,54533.0,54532.0,1.31114132]
[1725804030458,0.000815,54533.0,54532.0,1.32514132]
[1725804030938,0.000815,54533.0,54532.0,1.31114132]
[1725804031392,0.000815,54533.0,54532.0,1.32514132]
[1725804032082,0.000815,54533.0,54532.0,1.31114132]
[1725804032270,0.000815,54533.0,54532.0,1.32514132]
[1725804032761,0.000815,54533.0,54532.0,1.31114132]
[1725804032990,0.000815,54533.0,54532.0,1.32514132]
[1725804034120,0.000815,54533.0,54532.0,1.31114132]
[1725804034334,0.000815,54533.0,54532.0,1.32514132]
[1725804034996,0.000815,54533.0,54532.0,1.31114132]
[1725804035210,0.000815,54533.0,54532.0,1.32514132]
[1725804035425,0.000815,54533.0,54532.0,1.23693276]
[1725804035637,0.000815,54533.0,54532.0,1.31114132]
[1725804036790,0.000815,54533.0,54532.0,1.32514132]
[1725804039530,0.000815,54533.0,54532.0,0.717935]
[1725804040000,0.000815,54533.0,54532.0,1.084692]
[1725804043708,0.000815,54533.0,54532.0,1.17290056]
[1725804043945,0.000815,54533.0,54532.0,0.1678]
[1725804044083,0.000815,54533.0,54532.0,0.289778]
[1725804044923,0.000815,54533.0,54532.0,0.77441076]
[1725804045626,0.000815,54533.0,54532.0,0.83991076]
[1725804045857,0.000815,54533.0,54532.0,1.20666776]
[1725804049440,0.000815,54533.0,54532.0,1.57342476]
[1725804050365,0.000815,54533.0,54532.0,1.55942476]
[1725804051040,0.000815,54533.0,54532.0,1.57342476]
[1725804051644,0.000815,54533.0,54532.0,1.55942476]
[1725804052100,0.000815,54533.0,54532.0,1.57542476]
[1725804052336,0.000815,54533.0,54532.0,1.58542476]
[1725804053023,0.000815,54533.0,54532.0,1.95218176]
[1725804053240,0.000815,54533.0,54532.0,1.92418176]
[1725804053666,0.000815,54533.0,54532.0,1.95218176]
[1725804053893,0.000815,54533.0,54532.0,1.97218176]
[1725804054102,0.000815,54533.0,54532.0,1.98118176]
[1725804054542,0.000815,54533.0,54532.0,1.99518176]
[1725804054977,0.000815,54533.0,54532.0,1.98118176]
[1725804055897,0.000815,54533.0,54532.0,1.96718176]
[1725804056113,0.000815,54533.0,54532.0,1.98118176]
[1725804056532,0.000815,54533.0,54532.0,1.99518176]
[1725804056988,0.000815,54533.0,54532.0,1.96718176]
[1725804057220,0.000815,54533.0,54532.0,1.98118176]
[1725804057463,0.000815,54533.0,54532.0,1.99518176]
[1725804060435,0.000815,54533.0,54532.0,2.43939447]
[1725804060931,0.000815,54533.0,54532.0,2.35748254]
[1725804061824,0.000815,54533.0,54532.0,1.99518176]
[1725804062038,0.000815,54533.0,54532.0,1.99318176]
[1725804062258,0.000815,54533.0,54532.0,1.65143345]
[1725804062503,0.000815,54533.0,54532.0,0.41995389]
[1725804062751,0.000815,54533.0,54532.0,0.211378]
[1725804063009,0.000815,54533.0,54532.0,0.028]
[1725804063463,0.000815,54533.0,54532.0,0.197378]
[1725804063680,0.000815,54533.0,54532.0,0.183378]
[1725804063925,0.000815,54533.0,54532.0,0.31821806]
[1725804064414,0.000815,54533.0,54532.0,0.29321806]
[1725804064641,0.000815,54533.0,54532.0,0.30721806]
[1725804065286,0.000815,54533.0,54532.0,0.76218362]
[1725804065734,0.000815,54533.0,54532.0,0.77618362]
[1725804065957,0.000815,54533.0,54532.0,0.40942662]
[1725804069096,0.000815,54533.0,54532.0,0.77618362]
[1725804069530,0.000815,54533.0,54532.0,0.40942662]
[1725804069774,0.000815,54533.0,54532.0,1.30944062]
[1725804070183,0.000815,54533.0,54532.0,1.67619762]
[1725804070656,0.000815,54533.0,54532.0,1.58798906]
[1725804070873,0.000815,54533.0,54532.0,0.028]
[1725804071097,0.000815,54533.0,54532.0,0.211378]
[1725804071539,0.000815,54533.0,54532.0,0.578135]
[1725804073033,0.000815,54533.0,54532.0,0.211378]
[1725804073668,0.000815,54533.0,54532.0,0.32401676]
[1725804076925,0.000815,54533.0,54532.0,0.211378]
[1725804077395,0.000815,54533.0,54532.0,0.274678]
[1725804079421,0.000815,54533.0,54532.0,0.028]
[1725804079882,0.000815,54533.0,54532.0,0.211378]
[1725804080378,0.24969,54533.0,54532.0,0.028]
[1725804081462,0.066315,54533.0,54532.0,0.028]
[1725804083113,0.000815,54533.0,54532.0,0.028]
[1725804083554,0.000815,54533.0,54532.0,0.11065317]
[1725804083776,0.000815,54533.0,54532.0,0.028]
[1725804089228,0.37648984,54537.0,54532.0,0.028]
[1725804089442,0.183369,54535.0,54532.0,0.028]
[1725804089727,0.55985384,54537.0,54532.0,0.211376]
[1725804089937,0.183366,54536.0,54532.0,0.211376]
[1725804090153,0.183366,54536.0,54532.0,0.197376]
[1725804090838,0.183366,54536.0,54532.0,0.211376]
[1725804091058,0.183366,54536.0,54532.0,0.33670457]
[1725804091498,0.183368,54535.0,54532.0,0.211376]
[1725804092360,0.183368,54535.0,54532.0,0.183376]
[1725804092570,0.183368,54535.0,54532.0,0.197376]
[1725804092783,0.183368,54535.0,54532.0,0.211376]
[1725804092994,0.183368,54535.0,54532.0,0.197376]
[1725804093205,0.183368,54535.0,54532.0,0.13792887]
[1725804093449,0.183366,54536.0,54532.0,0.197378]
[1725804093679,0.183366,54536.0,54532.0,0.211378]
[1725804095012,0.183368,54535.0,54532.0,0.211378]
[1725804095237,0.183368,54535.0,54532.0,0.197378]
[1725804095707,0.366728,54537.0,54532.0,0.32760242]
[1725804095918,0.366728,54537.0,54532.0,0.29960242]
[1725804096149,0.366728,54537.0,54532.0,0.183378]
[1725804096331,0.366728,54537.0,54532.0,0.211378]
[1725804096552,0.183368,54535.0,54532.0,0.211378]
[1725804096781,0.184169,54538.0,54534.0,0.18337]
[1725804097246,0.184169,54538.0,54535.0,0.183367]
[1725804097727,0.00081,54538.0,54537.0,1.15376419]
[1725804097932,0.00081,54538.0,54537.0,1.56348719]
[1725804098166,0.00081,54538.0,54537.0,1.98695193]
[1725804098384,0.00081,54538.0,54537.0,2.0228385]
[1725804099231,0.00081,54538.0,54537.0,2.38812831]
[1725804099438,0.00081,54538.0,54537.0,3.20357229]
[1725804099662,0.00081,54538.0,54537.0,3.21757229]
[1725804099887,0.00081,54541.0,54540.0,1.682163]
[1725804100108,0.00082,54551.0,54548.0,0.42028119]
[1725804100343,0.00082,54551.0,54548.0,1.59712897]
[1725804100564,0.00082,54551.0,54548.0,1.62012897]
[1725804102136,0.00082,54551.0,54548.0,1.63412897]
[1725804102832,0.00082,54551.0,54548.0,1.62012897]
[1725804103047,0.00082,54551.0,54548.0,1.73875728]
[1725804103252,0.00082,54551.0,54548.0,1.72475728]
[1725804103475,0.00082,54551.0,54548.0,1.71075728]
[1725804103719,0.00082,54551.0,54548.0,1.72475728]
[1725804104808,0.00082,54551.0,54548.0,1.73875728]
[1725804105090,0.00082,54551.0,54548.0,1.72475728]
[1725804105291,0.00082,54551.0,54548.0,1.71075728]
[1725804105510,0.00082,54551.0,54548.0,1.74075728]
[1725804105936,0.00082,54551.0,54548.0,1.71075728]
[1725804106156,0.00082,54551.0,54548.0,1.73875728]
[1725804106364,0.00082,54551.0,54548.0,1.72675728]
[1725804107481,0.00082,54551.0,54548.0,1.74075728]
[1725804107702,0.00082,54551.0,54548.0,1.73875728]
[1725804108114,0.00082,54551.0,54548.0,1.72475728]
[1725804108520,0.08264411,54560.0,54548.0,1.72475728]
[1725804108521,0.0826441,54562.0,54560.0,0.183283]
[1725804108727,0.16718023,54567.0,54560.0,0.183283]
[1725804108728,0.05509607,54561.0,54560.0,0.183283]
[1725804109362,0.05509607,54562.0,54560.0,0.183283]
[1725804109562,0.05509607,54562.0,54561.0,0.183281]
[1725804109784,0.05509607,54562.0,54560.0,0.10462831]
[1725804110002,0.05509607,54562.0,54560.0,0.28791131]
[1725804110228,0.05509607,54563.0,54560.0,0.27391131]
[1725804110430,0.05509607,54562.0,54560.0,0.28791131]
[1725804110641,0.05509607,54562.0,54561.0,0.06544883]
[1725804112079,0.05509607,54562.0,54561.0,0.24872983]
[1725804112287,0.05509607,54562.0,54561.0,0.26272983]
[1725804112509,0.05509607,54562.0,54561.0,0.07944883]
[1725804112510,0.183277,54562.0,54561.0,0.07944883]
[1725804112726,0.183277,54562.0,54561.0,0.014]
[1725804112727,0.0588,54562.0,54561.0,0.014]
[1725804113386,0.0588,54562.0,54561.0,0.028]
[1725804114444,0.11389595,54562.0,54561.0,0.028]
[1725804114867,0.05509595,54562.0,54561.0,0.211281]
[1725804115534,0.05509595,54562.0,54561.0,0.028]
[1725804115770,0.05509595,54562.0,54561.0,0.2765567]
[1725804116378,0.05509595,54562.0,54561.0,0.0932757]
[1725804117319,0.05509595,54562.0,54561.0,0.028]
[1725804117532,0.05509562,54562.0,54561.0,0.028]
[1725804117744,0.05509562,54562.0,54561.0,0.577843]
[1725804117951,0.05509535,54563.0,54562.0,0.183277]
[1725804118159,0.05509535,54563.0,54562.0,0.549832]
[1725804118603,0.08264303,54563.0,54562.0,0.549832]
[1725804119024,0.08264303,54563.0,54562.0,0.6750072]
[1725804119240,0.08264303,54563.0,54562.0,0.3364522]
[1725804119465,0.08264303,54563.0,54562.0,0.7030072]
[1725804119699,0.08264303,54563.0,54562.0,0.6890072]
[1725804119941,0.08264303,54563.0,54562.0,0.577832]
[1725804120379,0.00082,54564.0,54562.0,0.577832]
[1725804121098,0.00082,54564.0,54562.0,0.563832]
[1725804121322,0.00082,54564.0,54562.0,0.197277]
[1725804121543,0.00082,54564.0,54562.0,0.211277]
[1725804121792,0.00082,54564.0,54563.0,0.183274]
[1725804122017,0.00082,54564.0,54562.0,0.014]
[1725804122213,0.00082,54564.0,54562.0,0.028]
[1725804122512,0.184092,54564.0,54562.0,0.028]
[1725804122725,0.184092,54564.0,54561.0,0.18328]
[1725804122937,0.184092,54564.0,54563.0,0.014]
[1725804123115,0.184092,54564.0,54563.0,0.028]
[1725804123584,0.184092,54564.0,54563.0,0.014]
[1725804124448,0.00082,54564.0,54562.0,0.014]
[1725804124656,0.00082,54564.0,54562.0,0.028]
[1725804125088,0.00082,54564.0,54561.0,0.18328]
[1725804125300,0.00082,54564.0,54563.0,0.014]
[1725804125968,0.00082,54564.0,54562.0,0.014]
[1725804126197,0.00082,54564.0,54561.0,0.18328]
[1725804126415,0.00082,54564.0,54561.0,0.014]
[1725804126905,0.00082,54564.0,54561.0,0.08796222]
[1725804127109,0.00082,54564.0,54563.0,0.197274]
[1725804127364,0.00082,54564.0,54563.0,0.736222]
[1725804127595,0.00082,54564.0,54563.0,1.492318]
[1725804127800,0.00082,54564.0,54563.0,1.506318]
[1725804128016,0.00082,54564.0,54563.0,1.492318]
[1725804128305,0.00082,54564.0,54563.0,0.706222]
[1725804128520,0.00082,54564.0,54563.0,0.339674]
[1725804128732,0.00082,54564.0,54563.0,0.325674]
[1725804128936,0.00082,54564.0,54563.0,0.339674]
[1725804129153,0.00082,54564.0,54563.0,0.325674]
[1725804129401,0.00082,54564.0,54563.0,0.80829902]
[1725804129617,0.00082,54564.0,54563.0,0.45575102]
[1725804129825,0.00082,54564.0,54563.0,0.278774]
[1725804130280,0.00082,54564.0,54563.0,0.197274]
[1725804130494,0.00082,54564.0,54563.0,0.211274]
[1725804130749,0.00082,54564.0,54563.0,0.028]
[1725804130969,0.05962,54564.0,54563.0,0.028]
[1725804131180,0.05962,54564.0,54563.0,0.014]
[1725804131390,0.05962,54564.0,54563.0,0.028]
[1725804132274,0.00082,54564.0,54563.0,0.028]
[1725804132494,0.184091,54564.0,54563.0,0.028]
[1725804133909,0.9781299,54564.0,54563.0,0.028]
[1725804134114,0.550633,54564.0,54563.0,0.028]
[1725804135016,0.917175,54564.0,54563.0,0.028]
[1725804135276,1.342517,54564.0,54563.0,0.028]
[1725804135495,1.877659,54564.0,54563.0,0.028]
[1725804135707,2.09137069,54564.0,54563.0,0.014]
[1725804135959,2.14675022,54564.0,54563.0,0.014]
[1725804136177,0.549933,54552.0,54551.0,0.55430836]
[1725804136597,0.549933,54552.0,54547.0,0.4692]
[1725804136598,0.18332,54550.0,54547.0,0.4692]
[1725804136804,0.18332,54550.0,54545.0,0.183334]
[1725804137040,0.425418,54553.0,54545.0,0.183334]
[1725804137041,0.183322,54549.0,54545.0,0.183334]
[1725804138763,0.183322,54549.0,54545.0,0.197334]
[1725804139001,0.183316,54551.0,54546.0,0.183329]
[1725804139206,0.183316,54551.0,54547.0,0.183326]
[1725804139445,0.18332,54550.0,54546.0,0.18333]
[1725804140341,0.18332,54550.0,54546.0,0.19733]
[1725804141226,0.183319,54550.0,54546.0,0.197331]
[1725804141451,0.183319,54550.0,54547.0,0.014]
[1725804141689,0.183319,54550.0,54546.0,0.197331]
[1725804141899,0.183319,54550.0,54546.0,0.183331]
[1725804142142,0.183314,54552.0,54546.0,0.394662]
[1725804142276,0.183315,54551.0,54547.0,0.183327]
[1725804142708,0.183318,54550.0,54547.0,0.197327]
[1725804142884,0.183318,54550.0,54549.0,0.139]
[1725804143104,0.183314,54552.0,54549.0,0.139]
[1725804144239,0.39533572,54555.0,54547.0,0.014]
[1725804144240,0.183322,54549.0,54547.0,0.014]
[1725804144450,0.183324,54548.0,54547.0,0.014]
[1725804144650,0.549973,54548.0,54547.0,0.014]
[1725804144886,0.549973,54548.0,54541.0,0.247778]
[1725804144887,0.183337,54545.0,54541.0,0.247778]
[1725804145352,0.183337,54545.0,54542.0,0.183344]
[1725804145584,0.366649,54548.0,54547.0,0.014]
[1725804145789,0.549973,54548.0,54547.0,0.014]
[1725804146006,0.183335,54545.0,54541.0,0.198976]
[1725804146236,0.183335,54545.0,54541.0,0.212976]
[1725804146459,0.183335,54545.0,54541.0,0.198976]
[1725804146662,0.183331,54547.0,54542.0,0.183344]
[1725804146883,0.183332,54546.0,54542.0,0.183344]
[1725804147084,0.366649,54548.0,54542.0,0.183344]
[1725804147085,0.366649,54548.0,54542.0,0.183342]
[1725804147519,0.18333,54547.0,54542.0,0.183342]
[1725804147728,0.18333,54547.0,54543.0,0.18334]
[1725804148171,0.183332,54546.0,54542.0,0.183344]
[1725804148407,0.183332,54546.0,54542.0,0.197344]
[1725804148623,0.183332,54546.0,54542.0,0.183344]
[1725804149053,0.183332,54546.0,54543.0,0.014]
[1725804149270,0.366659,54547.0,54542.0,0.183344]
[1725804149491,0.183332,54546.0,54542.0,0.183344]
[1725804149709,0.183332,54546.0,54541.0,0.00163]
[1725804149710,0.183337,54545.0,54541.0,0.184977]
[1725804149918,0.366661,54547.0,54542.0,0.014]
[1725804150146,0.18334,54544.0,54542.0,0.014]
[1725804150356,0.366666,54546.0,54542.0,0.014]
[1725804150357,0.183341,54543.0,54542.0,0.014]
[1725804150578,0.183341,54543.0,54542.0,0.028]
[1725804150806,1.0083748,54543.0,54542.0,0.028]
[1725804151039,1.0083748,54543.0,54542.0,0.014]
[1725804151329,1.0083748,54543.0,54541.0,0.00163]
[1725804151330,0.550033,54542.0,54541.0,0.00163]
[1725804151558,0.550033,54542.0,54541.0,0.01563]
[1725804151788,0.68753798,54542.0,54541.0,0.01563]
[1725804151981,0.32084898,54542.0,54541.0,0.00163]
[1725804152184,1.11302698,54542.0,54541.0,0.00163]
[1725804152397,1.342211,54542.0,54541.0,0.00163]
[1725804152599,1.342211,54542.0,54541.0,0.01563]
[1725804153040,1.342211,54542.0,54541.0,0.02963]
[1725804153244,1.442211,54542.0,54541.0,0.02963]
[1725804153473,1.59602956,54542.0,54541.0,0.02963]
[1725804157862,1.96271856,54542.0,54541.0,0.02963]
[1725804159040,2.08817489,54542.0,54541.0,0.02963]
[1725804159262,2.03331856,54542.0,54541.0,0.02963]
[1725804159703,2.03331856,54542.0,54541.0,0.01563]
[1725804160099,2.04331856,54542.0,54541.0,0.01563]
[1725804160327,2.09810632,54542.0,54541.0,0.01563]
[1725804160588,2.09810632,54542.0,54541.0,0.00163]
[1725804160808,2.46479532,54542.0,54541.0,0.00163]
[1725804161026,1.777775,54533.0,54532.0,0.00163]
[1725804161468,1.877775,54533.0,54532.0,0.00163]
[1725804162143,1.879775,54533.0,54532.0,0.00163]
[1725804162374,1.90652433,54533.0,54532.0,0.00163]
[1725804162601,1.72314933,54533.0,54532.0,0.00163]
[1725804162820,1.9101324,54533.0,54532.0,0.00163]
[1725804163260,2.0935074,54533.0,54532.0,0.00163]
[1725804165555,2.13082693,54533.0,54532.0,0.00163]
[1725804166277,2.52057693,54533.0,54532.0,0.00163]
[1725804166729,2.54057693,54533.0,54532.0,0.00163]
[1725804168985,2.5118276,54533.0,54532.0,0.00163]
[1725804170524,2.54057898,54533.0,54532.0,0.00163]
[1725804171179,2.55136122,54533.0,54532.0,0.00163]
[1725804172992,0.012,54530.0,54529.0,0.00166606]
[1725804173267,0.0708,54530.0,54529.0,0.00166606]
[1725804173483,1.423095,54530.0,54529.0,0.00166606]
[1725804173702,2.256635,54530.0,54529.0,0.00166606]
[1725804173916,2.27584623,54530.0,54529.0,0.00166606]
[1725804174131,2.4838293,54530.0,54529.0,0.00166606]
[1725804174337,2.5038293,54530.0,54529.0,0.00166606]
[1725804174554,2.5038293,54530.0,54529.0,0.00566606]
[1725804174763,2.5038293,54530.0,54529.0,0.00966606]
[1725804176176,2.4838293,54530.0,54529.0,0.00966606]
[1725804176400,2.5038293,54530.0,54529.0,0.00966606]
[1725804179795,2.4352293,54530.0,54529.0,0.00966606]
[1725804180012,2.4332293,54530.0,54529.0,0.00966606]
[1725804180441,2.4352293,54530.0,54529.0,0.00966606]
[1725804180899,2.0434593,54530.0,54529.0,0.00966606]
[1725804184494,1.9746593,54530.0,54529.0,0.00966606]
[1725804184719,1.9646593,54530.0,54529.0,0.00966606]
[1725804187792,1.9666593,54530.0,54529.0,0.00966606]
[1725804188476,1.9746593,54530.0,54529.0,0.00966606]
[1725804188719,1.9866593,54530.0,54529.0,0.00966606]
[1725804189628,1.9846593,54530.0,54529.0,0.00966606]
[1725804189864,1.9746593,54530.0,54529.0,0.00966606]
[1725804190493,2.00541008,54530.0,54529.0,0.00966606]
[1725804190704,1.99541008,54530.0,54529.0,0.00966606]
[1725804192449,2.05021005,54530.0,54529.0,0.00966606]
[1725804193347,2.07761004,54530.0,54529.0,0.00966606]
[1725804193568,2.13641004,54530.0,54529.0,0.00966606]